[Event "*** Titled Tuesday Blitz"]
[Site "Chess.com"]
[Date "2019.06.04"]
[Round "2"]
[White "joppie2"]
[Black "PaulfromSPb"]
[Result "1/2-1/2"]
[WhiteElo "2894"]
[BlackElo "2663"]
[TimeControl "180+2"]
[EndTime "13:26:41 PDT"]
[Termination "Game drawn by agreement"]

1. d4 {[%clk 0:02:56.8]} 1... Nf6 {[%clk 0:03:00]} 2. c4 {[%clk 0:02:57]} 2...
e6 {[%clk 0:03:01]} 3. Nc3 {[%clk 0:02:58.6]} 3... Bb4 {[%clk 0:03:01.5]} 4. e3
{[%clk 0:03:00.2]} 4... O-O {[%clk 0:03:01.9]} 5. Bd3 {[%clk 0:03:01.8]} 5... c5
{[%clk 0:03:01.4]} 6. a3 {[%clk 0:03:03.3]} 6... Bxc3+ {[%clk 0:03:01.6]} 7.
bxc3 {[%clk 0:03:05.2]} 7... d5 {[%clk 0:02:54.4]} 8. Ne2 {[%clk 0:03:03.3]}
8... Nc6 {[%clk 0:02:54.7]} 9. O-O {[%clk 0:02:58.7]} 9... b6 {[%clk 0:02:54.4]}
10. a4 {[%clk 0:02:51.9]} 10... Qc7 {[%clk 0:02:52.7]} 11. Ba3 {[%clk
0:02:51.8]} 11... Na5 {[%clk 0:02:51.6]} 12. cxd5 {[%clk 0:02:52.3]} 12... exd5
{[%clk 0:02:49.9]} 13. Nf4 {[%clk 0:02:46.9]} 13... Rd8 {[%clk 0:02:40.5]} 14.
Rc1 {[%clk 0:02:43.4]} 14... Bb7 {[%clk 0:02:20.5]} 15. f3 {[%clk 0:02:32.8]}
15... Re8 {[%clk 0:02:18.1]} 16. Re1 {[%clk 0:02:33.6]} 16... Rad8 {[%clk
0:02:12]} 17. g4 {[%clk 0:02:33.3]} 17... Nc4 {[%clk 0:02:08.4]} 18. Bxc4 {[%clk
0:02:17.2]} 18... dxc4 {[%clk 0:02:09]} 19. Ng2 {[%clk 0:02:03.5]} 19... Qd7
{[%clk 0:01:47.6]} 20. e4 {[%clk 0:01:57.3]} 20... cxd4 {[%clk 0:01:46]} 21.
cxd4 {[%clk 0:01:59.2]} 21... Qxd4+ {[%clk 0:01:45.6]} 22. Qxd4 {[%clk
0:02:01.1]} 22... Rxd4 {[%clk 0:01:46.7]} 23. Bb2 {[%clk 0:02:02.6]} 23... Rd3
{[%clk 0:01:47.9]} 24. Ne3 {[%clk 0:01:59]} 24... Rc8 {[%clk 0:01:31.4]} 25.
Nxc4 {[%clk 0:01:45.5]} 25... Rxf3 {[%clk 0:01:22.2]} 26. Nd6 {[%clk 0:01:45.9]}
26... Rxc1 {[%clk 0:01:17.3]} 27. Rxc1 {[%clk 0:01:47.8]} 27... Ba6 {[%clk
0:01:18.3]} 28. Rc7 {[%clk 0:01:45.9]} 28... h5 {[%clk 0:00:45.1]} 29. Rxa7
{[%clk 0:01:42.1]} 29... Bd3 {[%clk 0:00:40.6]} 30. Nxf7 {[%clk 0:01:10.2]}
30... Nxe4 {[%clk 0:00:34]} 31. Ne5 {[%clk 0:00:35]} 31... Rf1+ {[%clk
0:00:34.7]} 32. Kg2 {[%clk 0:00:36.3]} 32... Rf2+ {[%clk 0:00:35.9]} 33. Kg1
{[%clk 0:00:36]} 33... Rxb2 {[%clk 0:00:23.3]} 34. Nxd3 {[%clk 0:00:35.9]} 34...
Rb1+ {[%clk 0:00:24.6]} 35. Kg2 {[%clk 0:00:37.5]} 35... hxg4 {[%clk 0:00:26.4]}
36. Ne5 {[%clk 0:00:36.8]} 36... Rb2+ {[%clk 0:00:26.6]} 37. Kg1 {[%clk
0:00:38.1]} 37... Ng5 {[%clk 0:00:23]} 38. Nxg4 {[%clk 0:00:34.1]} 38... Nf3+
{[%clk 0:00:20.8]} 39. Kh1 {[%clk 0:00:35.6]} 39... Kh7 {[%clk 0:00:20]} 40. Rf7
{[%clk 0:00:31.8]} 40... Nh4 {[%clk 0:00:20.9]} 41. h3 {[%clk 0:00:32.3]} 41...
Rb4 {[%clk 0:00:18.8]} 42. Rb7 {[%clk 0:00:29.3]} 42... Nf5 {[%clk 0:00:17.2]}
43. Nf6+ {[%clk 0:00:26.9]} 43... Kg6 {[%clk 0:00:17.3]} 44. Nd5 {[%clk
0:00:28.4]} 44... Rxa4 {[%clk 0:00:17.4]} 45. Rxb6+ {[%clk 0:00:29.5]} 45... Kg5
{[%clk 0:00:18.8]} 46. Kg2 {[%clk 0:00:30.8]} 46... Ra2+ {[%clk 0:00:19]} 47.
Kf3 {[%clk 0:00:28.7]} 47... Ra3+ {[%clk 0:00:20.1]} 48. Kg2 {[%clk 0:00:29.5]}
48... Nh4+ {[%clk 0:00:20.8]} 49. Kh2 {[%clk 0:00:29.2]} 49... Ra2+ {[%clk
0:00:21.9]} 50. Kg1 {[%clk 0:00:29.6]} 50... Nf3+ {[%clk 0:00:21.6]} 51. Kf1
{[%clk 0:00:31.1]} 51... Rd2 {[%clk 0:00:20.6]} 52. Nc3 {[%clk 0:00:28.9]} 52...
Kh4 {[%clk 0:00:15.2]} 53. Ne2 {[%clk 0:00:20.8]} 53... Kxh3 {[%clk 0:00:11.4]}
54. Rg6 {[%clk 0:00:22.3]} 54... Nh4 {[%clk 0:00:10.9]} 55. Rxg7 {[%clk
0:00:18.6]} 55... Nf5 {[%clk 0:00:11.9]} 56. Rg5 {[%clk 0:00:18.7]} 56... Nd4
{[%clk 0:00:10.8]} 57. Nf4+ {[%clk 0:00:17.4]} 57... Kh4 {[%clk 0:00:10.9]} 58.
Rg8 {[%clk 0:00:18.5]} 58... Nf5 {[%clk 0:00:09.9]} 59. Ke1 {[%clk 0:00:17]}
59... Ra2 {[%clk 0:00:10.2]} 60. Ng6+ {[%clk 0:00:15.7]} 60... Kg5 {[%clk
0:00:10.3]} 61. Nf4+ {[%clk 0:00:17.6]} 61... Kxf4 {[%clk 0:00:11.1]} 62. Rf8
{[%clk 0:00:18.8]} 62... Ke4 {[%clk 0:00:11.4]} 63. Re8+ {[%clk 0:00:20.1]}
63... Kf3 {[%clk 0:00:11.7]} 64. Rf8 {[%clk 0:00:21.1]} 64... Kf4 {[%clk
0:00:12.8]} 65. Kd1 {[%clk 0:00:21.8]} 65... Rf2 {[%clk 0:00:12.9]} 66. Kc1
{[%clk 0:00:22.7]} 66... Ke3 {[%clk 0:00:12]} 67. Kb1 {[%clk 0:00:17]} 67... Ke4
{[%clk 0:00:13]} 68. Re8+ {[%clk 0:00:17]} 68... Kd3 {[%clk 0:00:14]} 69. Rf8
{[%clk 0:00:17.6]} 69... Kc3 {[%clk 0:00:12.9]} 70. Rc8+ {[%clk 0:00:18.6]}
70... Kb3 {[%clk 0:00:11.9]} 71. Rb8+ {[%clk 0:00:20.1]} 71... Kc4 {[%clk
0:00:13]} 72. Rc8+ {[%clk 0:00:21.2]} 72... Kd3 {[%clk 0:00:14]} 73. Rd8+ {[%clk
0:00:22.4]} 73... Nd4 {[%clk 0:00:14.6]} 74. Rc8 {[%clk 0:00:22.9]} 74... Nb3
{[%clk 0:00:13.6]} 75. Rc3+ {[%clk 0:00:23.1]} 75... Kd4 {[%clk 0:00:11.5]} 76.
Rxb3 {[%clk 0:00:24.3]} 76... Rf1+ {[%clk 0:00:12.8]} 77. Ka2 {[%clk 0:00:24.9]}
1/2-1/2

[Event "*** Titled Tuesday Blitz"]
[Site "Chess.com"]
[Date "2019.06.04"]
[Round "2"]
[White "RitvarsReimanis"]
[Black "slowdumbb"]
[Result "1/2-1/2"]
[WhiteElo "2646"]
[BlackElo "2374"]
[TimeControl "180+2"]
[EndTime "13:26:59 PDT"]
[Termination "Game drawn by repetition"]

1. c4 {[%clk 0:03:01.9]} 1... Nf6 {[%clk 0:02:55.6]} 2. Nc3 {[%clk 0:03:02.9]}
2... d5 {[%clk 0:02:56.6]} 3. cxd5 {[%clk 0:03:04.8]} 3... Nxd5 {[%clk
0:02:58.4]} 4. d4 {[%clk 0:03:04.6]} 4... g6 {[%clk 0:02:58.4]} 5. Nf3 {[%clk
0:03:04.2]} 5... Bg7 {[%clk 0:02:59]} 6. Qb3 {[%clk 0:03:04.9]} 6... Nxc3 {[%clk
0:02:59.6]} 7. bxc3 {[%clk 0:03:04.7]} 7... O-O {[%clk 0:03:00.9]} 8. Bf4 {[%clk
0:03:04.4]} 8... c5 {[%clk 0:03:01.8]} 9. e3 {[%clk 0:02:46.1]} 9... cxd4 {[%clk
0:02:59.8]} 10. exd4 {[%clk 0:02:45.6]} 10... Nc6 {[%clk 0:02:58.7]} 11. Be2
{[%clk 0:02:45.1]} 11... Qb6 {[%clk 0:02:39.1]} 12. O-O {[%clk 0:02:45]} 12...
Be6 {[%clk 0:02:37.2]} 13. Qxb6 {[%clk 0:02:46]} 13... axb6 {[%clk 0:02:39.1]}
14. Bc7 {[%clk 0:02:47]} 14... Bxa2 {[%clk 0:02:28]} 15. Bxb6 {[%clk 0:02:46.5]}
15... Bd5 {[%clk 0:02:27.5]} 16. Bc5 {[%clk 0:02:46.6]} 16... Rfe8 {[%clk
0:02:25.8]} 17. Rfb1 {[%clk 0:02:45.1]} 17... e5 {[%clk 0:02:16.6]} 18. Rxa8
{[%clk 0:02:40.4]} 18... Rxa8 {[%clk 0:02:17.2]} 19. dxe5 {[%clk 0:02:25.3]}
19... Nxe5 {[%clk 0:02:04.9]} 20. Nxe5 {[%clk 0:02:25.8]} 20... Bxe5 {[%clk
0:02:05.2]} 21. c4 {[%clk 0:02:04]} 21... Be4 {[%clk 0:01:55.8]} 22. Rd1 {[%clk
0:01:59]} 22... Bc2 {[%clk 0:01:53.9]} 23. Rc1 {[%clk 0:01:55.4]} 23... Be4
{[%clk 0:01:48.2]} 24. Be3 {[%clk 0:01:49]} 24... Kg7 {[%clk 0:01:22.2]} 25. g3
{[%clk 0:01:47.9]} 25... Ra2 {[%clk 0:01:21.6]} 26. Bf1 {[%clk 0:01:49]} 26...
Bb2 {[%clk 0:01:13.3]} 27. Rd1 {[%clk 0:01:45.5]} 27... Bc2 {[%clk 0:00:58.4]}
28. Rd2 {[%clk 0:01:28.4]} 28... Bc3 {[%clk 0:00:48.3]} 29. Bd4+ {[%clk
0:01:18.1]} 29... Bxd4 {[%clk 0:00:47.7]} 30. Rxd4 {[%clk 0:01:20]} 30... Ra1
{[%clk 0:00:46.4]} 31. Kg2 {[%clk 0:01:20.4]} 31... Ba4 {[%clk 0:00:40.1]} 32.
Be2 {[%clk 0:01:18.4]} 32... Ra3 {[%clk 0:00:29]} 33. Bf3 {[%clk 0:01:14.4]}
33... Rb3 {[%clk 0:00:18.5]} 34. c5 {[%clk 0:01:10.1]} 34... Be8 {[%clk
0:00:10.1]} 35. Rd8 {[%clk 0:01:06.9]} 35... Ba4 {[%clk 0:00:11]} 36. Ra8 {[%clk
0:00:56.2]} 36... Bd7 {[%clk 0:00:11.1]} 37. Ra7 {[%clk 0:00:52.8]} 37... Bc8
{[%clk 0:00:08.8]} 38. c6 {[%clk 0:00:42.8]} 38... bxc6 {[%clk 0:00:08.5]} 39.
Bxc6 {[%clk 0:00:44.7]} 39... Be6 {[%clk 0:00:09.7]} 40. h4 {[%clk 0:00:44.9]}
40... Rc3 {[%clk 0:00:11]} 41. Bf3 {[%clk 0:00:45.9]} 41... h5 {[%clk
0:00:12.1]} 42. Ra5 {[%clk 0:00:45.7]} 42... Kf6 {[%clk 0:00:12.4]} 43. Be4
{[%clk 0:00:46.7]} 43... Rc4 {[%clk 0:00:12.3]} 44. f3 {[%clk 0:00:46.4]} 44...
Rb4 {[%clk 0:00:12.7]} 45. Kf2 {[%clk 0:00:46.7]} 45... Rb2+ {[%clk 0:00:12.8]}
46. Ke3 {[%clk 0:00:48.3]} 46... Rb3+ {[%clk 0:00:14.2]} 47. Kf4 {[%clk
0:00:49.5]} 47... Kg7 {[%clk 0:00:13.6]} 48. Ra7 {[%clk 0:00:49.4]} 48... Kf6
{[%clk 0:00:13.6]} 49. Ra6 {[%clk 0:00:48.9]} 49... Rb5 {[%clk 0:00:12.7]} 50.
Ra7 {[%clk 0:00:44.5]} 50... Kg7 {[%clk 0:00:12.6]} 51. Rc7 {[%clk 0:00:43.2]}
51... Kf6 {[%clk 0:00:11.4]} 52. Rc1 {[%clk 0:00:44.6]} 52... Ra5 {[%clk
0:00:10.9]} 53. Bd3 {[%clk 0:00:42.7]} 53... Ra4+ {[%clk 0:00:10.4]} 54. Be4
{[%clk 0:00:44.1]} 54... Ra5 {[%clk 0:00:11.5]} 55. Rc7 {[%clk 0:00:45]} 55...
Kg7 {[%clk 0:00:11.7]} 56. Rb7 {[%clk 0:00:46.1]} 56... Kf6 {[%clk 0:00:12]} 57.
Rb6 {[%clk 0:00:47.3]} 57... Kg7 {[%clk 0:00:10.9]} 58. g4 {[%clk 0:00:48.3]}
58... hxg4 {[%clk 0:00:10.4]} 59. fxg4 {[%clk 0:00:50.2]} 59... Ra4 {[%clk
0:00:10.4]} 60. Rd6 {[%clk 0:00:31.7]} 60... Bxg4 {[%clk 0:00:07.9]} 61. Kxg4
{[%clk 0:00:33.6]} 61... Rxe4+ {[%clk 0:00:08.5]} 62. Kg3 {[%clk 0:00:35.5]}
62... Re3+ {[%clk 0:00:08.7]} 63. Kf4 {[%clk 0:00:36.5]} 63... Ra3 {[%clk
0:00:10.2]} 64. Kg4 {[%clk 0:00:36]} 64... Ra4+ {[%clk 0:00:11.1]} 65. Kg3
{[%clk 0:00:36.6]} 65... Kh6 {[%clk 0:00:12.2]} 66. Rd7 {[%clk 0:00:37.1]} 66...
f5 {[%clk 0:00:10.1]} 67. Rd8 {[%clk 0:00:37.2]} 67... Ra3+ {[%clk 0:00:10.9]}
68. Kf4 {[%clk 0:00:34.1]} 68... Ra4+ {[%clk 0:00:11.4]} 69. Kg3 {[%clk
0:00:34.9]} 69... Rg4+ {[%clk 0:00:12.3]} 70. Kh3 {[%clk 0:00:36.3]} 70... Kg7
{[%clk 0:00:13.5]} 71. Rd7+ {[%clk 0:00:35.2]} 71... Kf6 {[%clk 0:00:14.7]} 72.
Rd8 {[%clk 0:00:34.5]} 72... Ke5 {[%clk 0:00:15.6]} 73. Ra8 {[%clk 0:00:35]}
73... Rc4 {[%clk 0:00:12.3]} 74. Ra6 {[%clk 0:00:34.1]} 74... Rg4 {[%clk
0:00:11.7]} 75. Rb6 {[%clk 0:00:34]} 75... Kf4 {[%clk 0:00:09.4]} 76. Rb4+
{[%clk 0:00:32.8]} 76... Kf3 {[%clk 0:00:10.8]} 77. Rb3+ {[%clk 0:00:34.1]}
77... Kf2 {[%clk 0:00:11.4]} 78. Rb2+ {[%clk 0:00:33.7]} 78... Kg1 {[%clk
0:00:11.3]} 79. Rb1+ {[%clk 0:00:30.9]} 79... Kf2 {[%clk 0:00:12.7]} 80. Rb2+
{[%clk 0:00:32.3]} 80... Ke3 {[%clk 0:00:12.9]} 81. Rb3+ {[%clk 0:00:32.9]}
81... Kd2 {[%clk 0:00:12.9]} 82. Rb6 {[%clk 0:00:31.8]} 82... Ke3 {[%clk
0:00:09.6]} 83. Rb3+ {[%clk 0:00:32.7]} 83... Ke2 {[%clk 0:00:08.6]} 84. Rb2+
{[%clk 0:00:33.2]} 84... Kf3 {[%clk 0:00:09.1]} 85. Rb3+ {[%clk 0:00:34.2]}
85... Kf2 {[%clk 0:00:08.9]} 86. Rb2+ {[%clk 0:00:35.1]} 1/2-1/2

[Event "*** Titled Tuesday Blitz"]
[Site "Chess.com"]
[Date "2019.06.04"]
[Round "2"]
[White "mjray79"]
[Black "ozates"]
[Result "1-0"]
[WhiteElo "2124"]
[BlackElo "2219"]
[TimeControl "180+2"]
[EndTime "13:27:04 PDT"]
[Termination "mjray79 won by checkmate"]

1. d4 {[%clk 0:03:01.9]} 1... Nf6 {[%clk 0:02:59.7]} 2. c4 {[%clk 0:03:02.3]}
2... c5 {[%clk 0:02:59.3]} 3. d5 {[%clk 0:03:01.9]} 3... b5 {[%clk 0:02:58]} 4.
cxb5 {[%clk 0:03:02.9]} 4... a6 {[%clk 0:02:58.9]} 5. f3 {[%clk 0:03:04.3]} 5...
e6 {[%clk 0:02:48.1]} 6. e4 {[%clk 0:03:05.4]} 6... c4 {[%clk 0:02:29.5]} 7.
Bxc4 {[%clk 0:02:58.6]} 7... axb5 {[%clk 0:02:29.4]} 8. Bb3 {[%clk 0:02:38.5]}
8... Bc5 {[%clk 0:02:25.1]} 9. Ne2 {[%clk 0:02:38.6]} 9... Qb6 {[%clk
0:02:24.7]} 10. Bg5 {[%clk 0:02:30]} 10... h6 {[%clk 0:01:54.3]} 11. Bh4 {[%clk
0:02:19.9]} 11... Bb7 {[%clk 0:01:40.4]} 12. Nbc3 {[%clk 0:01:52.4]} 12... g5
{[%clk 0:01:36.7]} 13. Bg3 {[%clk 0:01:51.2]} 13... Nh5 {[%clk 0:01:36.9]} 14.
Be5 {[%clk 0:01:45.9]} 14... Bf2+ {[%clk 0:01:30.6]} 15. Kf1 {[%clk 0:01:45.6]}
15... f6 {[%clk 0:01:26]} 16. Bd4 {[%clk 0:01:46.1]} 16... Bxd4 {[%clk
0:01:23.6]} 17. Qxd4 {[%clk 0:01:45.4]} 17... Qxd4 {[%clk 0:01:24.3]} 18. Nxd4
{[%clk 0:01:45.4]} 18... b4 {[%clk 0:01:26.2]} 19. Ncb5 {[%clk 0:01:42.9]} 19...
Ba6 {[%clk 0:01:10.5]} 20. dxe6 {[%clk 0:01:33.9]} 20... dxe6 {[%clk 0:01:01.8]}
21. Bxe6 {[%clk 0:01:28.6]} 21... Nc6 {[%clk 0:00:59.8]} 22. Kf2 {[%clk
0:01:21.8]} 22... Nxd4 {[%clk 0:00:51.8]} 23. Nxd4 {[%clk 0:01:21.3]} 23... Nf4
{[%clk 0:00:52.9]} 24. Bb3 {[%clk 0:00:58.7]} 24... Nd3+ {[%clk 0:00:51.6]} 25.
Ke3 {[%clk 0:01:00]} 25... Nxb2 {[%clk 0:00:52.2]} 26. Rhc1 {[%clk 0:00:50.7]}
26... Kd7 {[%clk 0:00:42.2]} 27. Be6+ {[%clk 0:00:30.9]} 27... Kd6 {[%clk
0:00:40.7]} 28. Rc6+ {[%clk 0:00:30.4]} 28... Ke7 {[%clk 0:00:33.5]} 29. Rc7+
{[%clk 0:00:26.5]} 29... Kd6 {[%clk 0:00:28.7]} 30. Rd7+ {[%clk 0:00:25]} 30...
Kc5 {[%clk 0:00:28]} 31. Rc1+ {[%clk 0:00:24.7]} 31... Kb6 {[%clk 0:00:27.4]}
32. Rc6+ {[%clk 0:00:24.7]} 32... Ka5 {[%clk 0:00:27.7]} 33. Bb3 {[%clk
0:00:19.9]} 33... Rhd8 {[%clk 0:00:20.9]} 34. Rc5+ {[%clk 0:00:11.7]} 34... Kb6
{[%clk 0:00:20.3]} 35. Rc6+ {[%clk 0:00:13]} 35... Ka5 {[%clk 0:00:21.5]} 36.
Rxd8 {[%clk 0:00:14.2]} 36... Rxd8 {[%clk 0:00:21.6]} 37. Rxf6 {[%clk
0:00:15.5]} 37... Nc4+ {[%clk 0:00:19.7]} 38. Bxc4 {[%clk 0:00:15.6]} 38... Bxc4
{[%clk 0:00:21]} 39. Nc6+ {[%clk 0:00:16.8]} 39... Ka4 {[%clk 0:00:16.2]} 40.
Nxd8 {[%clk 0:00:18.1]} 40... Bxa2 {[%clk 0:00:17.5]} 41. Rxh6 {[%clk
0:00:18.4]} 41... b3 {[%clk 0:00:08.9]} 42. Rb6 {[%clk 0:00:18.3]} 42... Ka3
{[%clk 0:00:09]} 43. Nc6 {[%clk 0:00:17.3]} 43... b2 {[%clk 0:00:09.8]} 44. Rxb2
{[%clk 0:00:17]} 44... Kxb2 {[%clk 0:00:07.7]} 45. Ne7 {[%clk 0:00:16.8]} 45...
Kc3 {[%clk 0:00:08.1]} 46. Nd5+ {[%clk 0:00:16.7]} 46... Kc4 {[%clk 0:00:09.8]}
47. Nf6 {[%clk 0:00:17.1]} 47... Kc5 {[%clk 0:00:11.1]} 48. Nh7 {[%clk
0:00:17.5]} 48... g4 {[%clk 0:00:10.7]} 49. fxg4 {[%clk 0:00:17.9]} 49... Kd6
{[%clk 0:00:12.6]} 50. Ng5 {[%clk 0:00:15.7]} 50... Ke5 {[%clk 0:00:13.8]} 51.
Nf3+ {[%clk 0:00:16.3]} 51... Kf6 {[%clk 0:00:14.2]} 52. h4 {[%clk 0:00:17]}
52... Kg6 {[%clk 0:00:16.1]} 53. h5+ {[%clk 0:00:16.2]} 53... Kh6 {[%clk
0:00:17.2]} 54. e5 {[%clk 0:00:17.1]} 54... Be6 {[%clk 0:00:18.5]} 55. Kf4
{[%clk 0:00:17.7]} 55... Bd7 {[%clk 0:00:19.3]} 56. Nd4 {[%clk 0:00:18.1]} 56...
Be8 {[%clk 0:00:19.4]} 57. e6 {[%clk 0:00:17.9]} 57... Ba4 {[%clk 0:00:19.4]}
58. Kf5 {[%clk 0:00:17.8]} 58... Be8 {[%clk 0:00:15.2]} 59. Kf6 {[%clk
0:00:17.9]} 59... Ba4 {[%clk 0:00:15]} 60. Nf5+ {[%clk 0:00:18.5]} 60... Kh7
{[%clk 0:00:06.7]} 61. g5 {[%clk 0:00:19]} 61... Be8 {[%clk 0:00:07.1]} 62. g6+
{[%clk 0:00:18.5]} 62... Kg8 {[%clk 0:00:07.9]} 63. h6 {[%clk 0:00:19.3]} 63...
Kh8 {[%clk 0:00:05.7]} 64. g7+ {[%clk 0:00:15.2]} 64... Kh7 {[%clk 0:00:06.9]}
65. Ke7 {[%clk 0:00:15.7]} 65... Bf7 {[%clk 0:00:07.2]} 66. exf7 {[%clk
0:00:11.1]} 66... Kg6 {[%clk 0:00:07.6]} 67. Nd6 {[%clk 0:00:10.7]} 67... Kh7
{[%clk 0:00:08.5]} 68. f8=Q {[%clk 0:00:10.5]} 68... Kg6 {[%clk 0:00:08.7]} 69.
Qf6+ {[%clk 0:00:10.8]} 69... Kh7 {[%clk 0:00:09.8]} 70. g8=Q+ {[%clk
0:00:09.6]} 70... Kxg8 {[%clk 0:00:10]} 71. Qg7# {[%clk 0:00:10.8]} 1-0

[Event "*** Titled Tuesday Blitz"]
[Site "Chess.com"]
[Date "2019.06.04"]
[Round "2"]
[White "MatthewG-p4p"]
[Black "SoltaniciR"]
[Result "1/2-1/2"]
[WhiteElo "2794"]
[BlackElo "2605"]
[TimeControl "180+2"]
[EndTime "13:27:51 PDT"]
[Termination "Game drawn by repetition"]

1. Nf3 {[%clk 0:03:01.9]} 1... c5 {[%clk 0:02:59.4]} 2. b3 {[%clk 0:03:03]} 2...
b6 {[%clk 0:03:00]} 3. Bb2 {[%clk 0:03:04.4]} 3... Bb7 {[%clk 0:03:01.9]} 4. e3
{[%clk 0:03:05.6]} 4... e6 {[%clk 0:03:03.5]} 5. d4 {[%clk 0:03:07.1]} 5... Nf6
{[%clk 0:03:04.9]} 6. Bd3 {[%clk 0:03:07.6]} 6... Be7 {[%clk 0:03:04.1]} 7. O-O
{[%clk 0:03:05.4]} 7... d6 {[%clk 0:03:05.1]} 8. c4 {[%clk 0:03:06.3]} 8... Nbd7
{[%clk 0:03:06.4]} 9. Nc3 {[%clk 0:03:07.6]} 9... a6 {[%clk 0:03:07.2]} 10. Re1
{[%clk 0:03:07.7]} 10... Qc7 {[%clk 0:02:59.3]} 11. Rc1 {[%clk 0:03:07.3]} 11...
Rc8 {[%clk 0:02:59.4]} 12. Bb1 {[%clk 0:03:07.7]} 12... O-O {[%clk 0:02:58.6]}
13. a4 {[%clk 0:03:04.5]} 13... Rfe8 {[%clk 0:02:58.6]} 14. d5 {[%clk
0:03:02.3]} 14... exd5 {[%clk 0:02:59.7]} 15. cxd5 {[%clk 0:03:03.2]} 15... Qb8
{[%clk 0:02:53.4]} 16. Qd3 {[%clk 0:03:02.6]} 16... Bf8 {[%clk 0:02:49.3]} 17.
e4 {[%clk 0:02:50.2]} 17... g6 {[%clk 0:02:33.7]} 18. Nd2 {[%clk 0:02:49.9]}
18... Bg7 {[%clk 0:02:30.9]} 19. f4 {[%clk 0:02:50.7]} 19... Nh5 {[%clk
0:02:31.6]} 20. g3 {[%clk 0:02:50.2]} 20... Ba8 {[%clk 0:02:21.4]} 21. Qf3
{[%clk 0:02:17.6]} 21... b5 {[%clk 0:02:19.8]} 22. g4 {[%clk 0:02:15.1]} 22...
Nhf6 {[%clk 0:02:13.5]} 23. Kh1 {[%clk 0:02:16.5]} 23... c4 {[%clk 0:01:25.2]}
24. bxc4 {[%clk 0:02:13.8]} 24... b4 {[%clk 0:01:26.2]} 25. Ne2 {[%clk
0:02:11.4]} 25... Nc5 {[%clk 0:01:25.5]} 26. e5 {[%clk 0:02:09.8]} 26... dxe5
{[%clk 0:00:59.3]} 27. fxe5 {[%clk 0:02:10.3]} 27... Nfd7 {[%clk 0:01:00.9]} 28.
Rf1 {[%clk 0:01:45.7]} 28... Nxe5 {[%clk 0:00:57.2]} 29. Bxe5 {[%clk 0:01:42.9]}
29... Qxe5 {[%clk 0:00:59.1]} 30. Ng3 {[%clk 0:01:28.2]} 30... Qc7 {[%clk
0:00:41.5]} 31. Nge4 {[%clk 0:01:23.6]} 31... Nxa4 {[%clk 0:00:36.8]} 32. g5
{[%clk 0:01:22.8]} 32... Nc3 {[%clk 0:00:36.2]} 33. Bd3 {[%clk 0:01:19]} 33...
a5 {[%clk 0:00:23.1]} 34. Nxc3 {[%clk 0:01:03.4]} 34... Bxc3 {[%clk 0:00:18.4]}
35. Ne4 {[%clk 0:01:05.3]} 35... Bg7 {[%clk 0:00:19.8]} 36. Rc2 {[%clk
0:00:56.1]} 36... b3 {[%clk 0:00:20.3]} 37. Rcf2 {[%clk 0:00:57.6]} 37... a4
{[%clk 0:00:20.2]} 38. Qxf7+ {[%clk 0:00:52.4]} 38... Qxf7 {[%clk 0:00:21.2]}
39. Rxf7 {[%clk 0:00:54.3]} 39... a3 {[%clk 0:00:22.1]} 40. Ra7 {[%clk
0:00:53.1]} 40... a2 {[%clk 0:00:22.8]} 41. Nf6+ {[%clk 0:00:53.1]} 41... Bxf6
{[%clk 0:00:23.3]} 42. gxf6 {[%clk 0:00:55]} 42... Rf8 {[%clk 0:00:21.7]} 43.
Kg1 {[%clk 0:00:50.8]} 43... Rcd8 {[%clk 0:00:16.8]} 44. Ra3 {[%clk 0:00:46.3]}
44... Rb8 {[%clk 0:00:16.3]} 45. d6 {[%clk 0:00:46.6]} 45... Rb6 {[%clk
0:00:16]} 46. c5 {[%clk 0:00:47.6]} 46... Rb4 {[%clk 0:00:15.7]} 47. d7 {[%clk
0:00:31.6]} 47... Bc6 {[%clk 0:00:15.7]} 48. Rxb3 {[%clk 0:00:27.7]} 48... Rd4
{[%clk 0:00:16.9]} 49. Ra3 {[%clk 0:00:21.6]} 49... Bxd7 {[%clk 0:00:17.7]} 50.
Be2 {[%clk 0:00:17.7]} 50... Be6 {[%clk 0:00:16.5]} 51. c6 {[%clk 0:00:18.6]}
51... Rd2 {[%clk 0:00:16.9]} 52. Re1 {[%clk 0:00:18.7]} 52... Rxf6 {[%clk
0:00:15.6]} 53. c7 {[%clk 0:00:20.1]} 53... Rc2 {[%clk 0:00:17]} 54. Ra7 {[%clk
0:00:17.8]} 54... a1=Q {[%clk 0:00:15.5]} 55. c8=Q+ {[%clk 0:00:16.9]} 55...
Bxc8 {[%clk 0:00:13.9]} 56. Raxa1 {[%clk 0:00:18.8]} 56... Be6 {[%clk
0:00:13.9]} 57. Ra6 {[%clk 0:00:19.2]} 57... Kg7 {[%clk 0:00:14.3]} 58. Bd3
{[%clk 0:00:19.8]} 58... Rd2 {[%clk 0:00:13.8]} 59. Ra7+ {[%clk 0:00:20.9]}
59... Bf7 {[%clk 0:00:14.4]} 60. Ra3 {[%clk 0:00:22.8]} 60... Rff2 {[%clk
0:00:11.5]} 61. Ra7 {[%clk 0:00:13.8]} 61... Rg2+ {[%clk 0:00:12.3]} 62. Kh1
{[%clk 0:00:15.3]} 62... Rxh2+ {[%clk 0:00:13.5]} 63. Kg1 {[%clk 0:00:17]} 63...
Rdg2+ {[%clk 0:00:14.2]} 64. Kf1 {[%clk 0:00:18.4]} 64... Rf2+ {[%clk
0:00:15.5]} 65. Kg1 {[%clk 0:00:19.7]} 65... Rhg2+ {[%clk 0:00:16.3]} 66. Kh1
{[%clk 0:00:21.2]} 66... Rg4 {[%clk 0:00:15]} 67. Ree7 {[%clk 0:00:20]} 67...
Rf3 {[%clk 0:00:15.4]} 68. Kh2 {[%clk 0:00:15.5]} 68... Rgf4 {[%clk 0:00:13.9]}
69. Be2 {[%clk 0:00:16]} 69... Rf2+ {[%clk 0:00:12.5]} 70. Kg3 {[%clk
0:00:17.2]} 70... h5 {[%clk 0:00:13.6]} 71. Kh3 {[%clk 0:00:14.1]} 71... Rf6
{[%clk 0:00:11.4]} 72. Bc4 {[%clk 0:00:13.9]} 72... R2f4 {[%clk 0:00:12.4]} 73.
Bd5 {[%clk 0:00:12.9]} 73... g5 {[%clk 0:00:12.9]} 74. Re5 {[%clk 0:00:14.1]}
74... Kg6 {[%clk 0:00:13.7]} 75. Be4+ {[%clk 0:00:15.5]} 75... Kh6 {[%clk
0:00:13.3]} 76. Kg3 {[%clk 0:00:16.7]} 76... h4+ {[%clk 0:00:14]} 77. Kh2 {[%clk
0:00:18.1]} 77... Rf2+ {[%clk 0:00:13.9]} 78. Kg1 {[%clk 0:00:18.1]} 78... Rf1+
{[%clk 0:00:15]} 79. Kg2 {[%clk 0:00:19.6]} 79... R1f4 {[%clk 0:00:13.4]} 80.
Raa5 {[%clk 0:00:19]} 80... Rg4+ {[%clk 0:00:11.7]} 81. Kh3 {[%clk 0:00:19.1]}
81... Rg3+ {[%clk 0:00:12.9]} 82. Kh2 {[%clk 0:00:20.2]} 82... Be6 {[%clk
0:00:11.4]} 83. Bg2 {[%clk 0:00:19]} 83... Bf7 {[%clk 0:00:10.3]} 84. Re2 {[%clk
0:00:19.1]} 84... Bg6 {[%clk 0:00:10.7]} 85. Ra8 {[%clk 0:00:16.7]} 85... Bf7
{[%clk 0:00:09.4]} 86. Ra5 {[%clk 0:00:17.2]} 86... Be6 {[%clk 0:00:07.9]} 87.
Ra6 {[%clk 0:00:17.6]} 87... Rxg2+ {[%clk 0:00:07]} 88. Rxg2 {[%clk 0:00:18]}
88... Kg6 {[%clk 0:00:08.1]} 89. Re2 {[%clk 0:00:18.9]} 89... Kf7 {[%clk
0:00:08.2]} 90. Ra7+ {[%clk 0:00:18.5]} 90... Kg6 {[%clk 0:00:09.2]} 91. Ra6
{[%clk 0:00:19.5]} 91... Kf7 {[%clk 0:00:10]} 92. Ra7+ {[%clk 0:00:20]} 92...
Kg6 {[%clk 0:00:11.1]} 93. Ra6 {[%clk 0:00:21.1]} 1/2-1/2